[Event "Late-Titled-Tuesday-Blitz-January-30-2024"]
[Site "Chess.com"]
[Date "2024.01.30"]
[Round "3"]
[White "SaqoChess_Twitch"]
[Black "WindWhistler11"]
[Result "1-0"]
[WhiteElo "2630"]
[BlackElo "2474"]
[TimeControl "180+1"]
[EndTime "14:28:43 PST"]
[Termination "SaqoChess_Twitch won on time"]

1. d4 {[%clk 0:03:00.9]} 1... Nf6 {[%clk 0:02:59.1]} 2. c4 {[%clk 0:03:01]} 2...
e6 {[%clk 0:02:59.1]} 3. Nc3 {[%clk 0:03:01.6]} 3... c5 {[%clk 0:02:59.6]} 4. d5
{[%clk 0:03:01.6]} 4... exd5 {[%clk 0:03:00.5]} 5. cxd5 {[%clk 0:03:02.5]} 5...
Bd6 {[%clk 0:03:01.2]} 6. Nf3 {[%clk 0:03:02.8]} 6... O-O {[%clk 0:03:01.8]} 7.
g3 {[%clk 0:03:03.6]} 7... Re8 {[%clk 0:03:02]} 8. Bg2 {[%clk 0:03:04.3]} 8...
Bc7 {[%clk 0:03:02.1]} 9. O-O {[%clk 0:03:05]} 9... d6 {[%clk 0:03:02.5]} 10.
Nd2 {[%clk 0:03:05.7]} 10... a6 {[%clk 0:03:03]} 11. a4 {[%clk 0:03:05.8]} 11...
Nbd7 {[%clk 0:03:03.6]} 12. Nc4 {[%clk 0:03:06.2]} 12... Rb8 {[%clk 0:03:01.9]}
13. a5 {[%clk 0:03:05.4]} 13... Nf8 {[%clk 0:03:02.5]} 14. e4 {[%clk 0:03:05.3]}
14... Bd7 {[%clk 0:02:55.2]} 15. f4 {[%clk 0:03:04.8]} 15... Bb5 {[%clk
0:02:55.7]} 16. b3 {[%clk 0:03:01.2]} 16... Bxc4 {[%clk 0:02:53.9]} 17. bxc4
{[%clk 0:03:02.1]} 17... Bxa5 {[%clk 0:02:54.1]} 18. Bb2 {[%clk 0:03:01.4]}
18... Bxc3 {[%clk 0:02:53.8]} 19. Bxc3 {[%clk 0:03:01.6]} 19... Nxe4 {[%clk
0:02:54.5]} 20. Qd3 {[%clk 0:02:52.2]} 20... Nxc3 {[%clk 0:02:20.5]} 21. Qxc3
{[%clk 0:02:52.2]} 21... Qf6 {[%clk 0:02:19.4]} 22. Qxf6 {[%clk 0:02:48.1]}
22... gxf6 {[%clk 0:02:19.6]} 23. Kf2 {[%clk 0:02:49]} 23... Nd7 {[%clk
0:02:14.4]} 24. Rfb1 {[%clk 0:02:48.7]} 24... f5 {[%clk 0:02:08.1]} 25. Bh3
{[%clk 0:02:48.3]} 25... Nf6 {[%clk 0:01:57.4]} 26. Bxf5 {[%clk 0:02:48.3]}
26... Ne4+ {[%clk 0:01:57.8]} 27. Kg2 {[%clk 0:02:45.2]} 27... Nd2 {[%clk
0:01:54.9]} 28. Re1 {[%clk 0:02:19.4]} 28... Nxc4 {[%clk 0:01:51.6]} 29. Kf2
{[%clk 0:02:13.6]} 29... Rxe1 {[%clk 0:01:39.6]} 30. Rxe1 {[%clk 0:02:14.5]}
30... b5 {[%clk 0:01:37.2]} 31. Ra1 {[%clk 0:02:10.4]} 31... a5 {[%clk
0:01:36.9]} 32. Bd3 {[%clk 0:02:10]} 32... Nb2 {[%clk 0:01:36.3]} 33. Be2 {[%clk
0:02:07]} 33... a4 {[%clk 0:01:35.8]} 34. Ra2 {[%clk 0:02:06]} 34... a3 {[%clk
0:01:25.6]} 35. Rxa3 {[%clk 0:02:04.1]} 35... c4 {[%clk 0:01:25.7]} 36. Ke3
{[%clk 0:01:55.3]} 36... b4 {[%clk 0:01:23.7]} 37. Ra6 {[%clk 0:01:44]} 37... c3
{[%clk 0:01:13.1]} 38. Rxd6 {[%clk 0:01:42.1]} 38... b3 {[%clk 0:01:04.1]} 39.
Rc6 {[%clk 0:01:42]} 39... Re8+ {[%clk 0:00:59.9]} 40. Kf2 {[%clk 0:01:39]}
40... Na4 {[%clk 0:00:57.2]} 41. d6 {[%clk 0:01:29.1]} 41... Kg7 {[%clk
0:00:50.6]} 42. Bd3 {[%clk 0:01:06]} 42... Nb2 {[%clk 0:00:22.4]} 43. Bb5 {[%clk
0:00:58.4]} 43... Rd8 {[%clk 0:00:17.5]} 44. Ke2 {[%clk 0:00:51.3]} 44... Re8+
{[%clk 0:00:15.5]} 45. Kf3 {[%clk 0:00:49.9]} 45... Rb8 {[%clk 0:00:16.2]} 46.
d7 {[%clk 0:00:45.9]} 46... c2 {[%clk 0:00:13.4]} 47. Rc8 {[%clk 0:00:43.2]}
47... Rxb5 {[%clk 0:00:08.5]} 48. d8=Q {[%clk 0:00:42.9]} 48... Nd1 {[%clk
0:00:02.8]} 49. Qh8+ {[%clk 0:00:37]} 1-0

[Event "Late-Titled-Tuesday-Blitz-January-30-2024"]
[Site "Chess.com"]
[Date "2024.01.30"]
[Round "3"]
[White "Kacparov"]
[Black "Hamisandwich"]
[Result "1-0"]
[WhiteElo "2938"]
[BlackElo "2707"]
[TimeControl "180+1"]
[EndTime "14:28:45 PST"]
[Termination "Kacparov won on time"]

1. e4 {[%clk 0:03:00.9]} 1... c6 {[%clk 0:03:00.4]} 2. d4 {[%clk 0:03:01]} 2...
d5 {[%clk 0:03:01.3]} 3. e5 {[%clk 0:03:00.9]} 3... Bf5 {[%clk 0:03:00.9]} 4.
Nf3 {[%clk 0:03:01.4]} 4... e6 {[%clk 0:03:01]} 5. Be2 {[%clk 0:03:01.7]} 5...
Nd7 {[%clk 0:03:01]} 6. O-O {[%clk 0:03:02.5]} 6... a5 {[%clk 0:02:59.5]} 7. Be3
{[%clk 0:03:01.8]} 7... a4 {[%clk 0:02:59.4]} 8. Nbd2 {[%clk 0:02:58.1]} 8... a3
{[%clk 0:02:57.7]} 9. b3 {[%clk 0:02:55.8]} 9... Bb4 {[%clk 0:02:57.5]} 10. Nb1
{[%clk 0:02:42.4]} 10... f6 {[%clk 0:02:50.4]} 11. c3 {[%clk 0:02:40.5]} 11...
Bxb1 {[%clk 0:02:44.2]} 12. Rxb1 {[%clk 0:02:16.9]} 12... Bxc3 {[%clk
0:02:36.5]} 13. exf6 {[%clk 0:02:16]} 13... Ngxf6 {[%clk 0:02:25]} 14. b4 {[%clk
0:02:15.6]} 14... e5 {[%clk 0:02:12.4]} 15. dxe5 {[%clk 0:02:08.3]} 15... Nxe5
{[%clk 0:02:13.3]} 16. Qc2 {[%clk 0:01:55.3]} 16... Bb2 {[%clk 0:02:06.4]} 17.
Bc5 {[%clk 0:01:37.3]} 17... Nxf3+ {[%clk 0:01:46.2]} 18. Bxf3 {[%clk
0:01:38.2]} 18... Kf7 {[%clk 0:01:46.9]} 19. b5 {[%clk 0:01:30.6]} 19... b6
{[%clk 0:01:37.4]} 20. Be3 {[%clk 0:01:30.5]} 20... c5 {[%clk 0:01:35.2]} 21.
Rbd1 {[%clk 0:01:28.1]} 21... d4 {[%clk 0:01:27.2]} 22. Bxa8 {[%clk 0:01:21.9]}
22... Qxa8 {[%clk 0:01:28.1]} 23. Bg5 {[%clk 0:01:07.5]} 23... Qd5 {[%clk
0:01:23]} 24. Bxf6 {[%clk 0:01:04.8]} 24... Kxf6 {[%clk 0:01:23.9]} 25. Rd3
{[%clk 0:01:03.1]} 25... g6 {[%clk 0:01:24.3]} 26. Re1 {[%clk 0:00:59.5]} 26...
Rf8 {[%clk 0:00:36.6]} 27. h4 {[%clk 0:00:42.5]} 27... c4 {[%clk 0:00:21.4]} 28.
Rf3+ {[%clk 0:00:41.1]} 28... Kg7 {[%clk 0:00:22]} 29. Re7+ {[%clk 0:00:40.5]}
29... Kg8 {[%clk 0:00:22.8]} 30. Rxf8+ {[%clk 0:00:26.6]} 30... Kxf8 {[%clk
0:00:23.7]} 31. Rxh7 {[%clk 0:00:27.4]} 31... d3 {[%clk 0:00:23.9]} 32. Qd2
{[%clk 0:00:25.7]} 32... Bg7 {[%clk 0:00:20.2]} 33. h5 {[%clk 0:00:20.3]} 33...
Qe4 {[%clk 0:00:05.7]} 34. h6 {[%clk 0:00:17.7]} 34... Bf6 {[%clk 0:00:02.3]}
35. Rc7 {[%clk 0:00:12.7]} 35... c3 {[%clk 0:00:02.3]} 36. Rxc3 {[%clk
0:00:12.6]} 36... Bxc3 {[%clk 0:00:03.2]} 37. Qxc3 {[%clk 0:00:13.5]} 1-0

[Event "Late-Titled-Tuesday-Blitz-January-30-2024"]
[Site "Chess.com"]
[Date "2024.01.30"]
[Round "3"]
[White "ArchibaldCerveza29"]
[Black "Baby_Legs"]
[Result "1-0"]
[WhiteElo "2478"]
[BlackElo "2602"]
[TimeControl "180+1"]
[EndTime "14:28:47 PST"]
[Termination "ArchibaldCerveza29 won by checkmate"]

1. b3 {[%clk 0:03:00.9]} 1... Nf6 {[%clk 0:02:58.2]} 2. Bb2 {[%clk 0:03:01.8]}
2... g6 {[%clk 0:02:58.5]} 3. g3 {[%clk 0:03:02.7]} 3... Bg7 {[%clk 0:02:58.5]}
4. Bg2 {[%clk 0:03:03.6]} 4... O-O {[%clk 0:02:58.8]} 5. d3 {[%clk 0:03:02.2]}
5... d5 {[%clk 0:02:58.6]} 6. Nd2 {[%clk 0:03:01.9]} 6... c5 {[%clk 0:02:58.1]}
7. e3 {[%clk 0:03:02.2]} 7... Nc6 {[%clk 0:02:58.1]} 8. Ne2 {[%clk 0:03:02.2]}
8... e5 {[%clk 0:02:57.2]} 9. h3 {[%clk 0:03:02.7]} 9... Be6 {[%clk 0:02:56]}
10. O-O {[%clk 0:03:02.9]} 10... Qc7 {[%clk 0:02:52.9]} 11. a3 {[%clk 0:03:02]}
11... Rad8 {[%clk 0:02:52]} 12. Kh2 {[%clk 0:03:01.9]} 12... Rfe8 {[%clk
0:02:52]} 13. Rc1 {[%clk 0:02:53.9]} 13... b6 {[%clk 0:02:49.6]} 14. Qe1 {[%clk
0:02:50.1]} 14... Bc8 {[%clk 0:02:49.3]} 15. e4 {[%clk 0:02:43.6]} 15... h5
{[%clk 0:02:46]} 16. Nc3 {[%clk 0:02:37.3]} 16... d4 {[%clk 0:02:35.7]} 17. Ne2
{[%clk 0:02:33.9]} 17... h4 {[%clk 0:02:32.5]} 18. g4 {[%clk 0:02:34]} 18... g5
{[%clk 0:02:30.7]} 19. Rb1 {[%clk 0:02:20.6]} 19... Bf8 {[%clk 0:02:29]} 20. Nc1
{[%clk 0:02:17.6]} 20... Re6 {[%clk 0:02:22.2]} 21. Na2 {[%clk 0:02:13.7]} 21...
Ne8 {[%clk 0:02:13.8]} 22. Nf3 {[%clk 0:02:05.3]} 22... f6 {[%clk 0:02:09.4]}
23. Bc1 {[%clk 0:01:59.3]} 23... Ng7 {[%clk 0:02:04.8]} 24. b4 {[%clk
0:01:49.3]} 24... cxb4 {[%clk 0:02:01.5]} 25. axb4 {[%clk 0:01:50.2]} 25... b5
{[%clk 0:02:02]} 26. c4 {[%clk 0:01:45.2]} 26... dxc3 {[%clk 0:02:01.3]} 27.
Nxc3 {[%clk 0:01:43.4]} 27... Rxd3 {[%clk 0:01:56.6]} 28. Nd5 {[%clk 0:01:36.5]}
28... Qd8 {[%clk 0:01:46.5]} 29. Qe2 {[%clk 0:01:30]} 29... Rxf3 {[%clk
0:01:43.2]} 30. Qxf3 {[%clk 0:01:30.9]} 30... Nd4 {[%clk 0:01:41.8]} 31. Qd3
{[%clk 0:01:30]} 31... Rc6 {[%clk 0:01:38.8]} 32. Be3 {[%clk 0:01:26.1]} 32...
Nge6 {[%clk 0:01:37]} 33. Rfc1 {[%clk 0:01:21.6]} 33... Bb7 {[%clk 0:01:35.5]}
34. Rxc6 {[%clk 0:01:17.9]} 34... Bxc6 {[%clk 0:01:36.4]} 35. Rc1 {[%clk
0:01:18.2]} 35... Kf7 {[%clk 0:01:32.9]} 36. Qa3 {[%clk 0:01:13.9]} 36... Qd7
{[%clk 0:01:29.4]} 37. Bf1 {[%clk 0:01:05.5]} 37... Bd6 {[%clk 0:01:24.3]} 38.
Bg2 {[%clk 0:01:01.5]} 38... Qb7 {[%clk 0:01:19.4]} 39. Qa2 {[%clk 0:00:55.5]}
39... Kg6 {[%clk 0:01:16.1]} 40. Ra1 {[%clk 0:00:55.1]} 40... Bb8 {[%clk
0:01:14]} 41. Qa6 {[%clk 0:00:54.6]} 41... Qd7 {[%clk 0:00:56.9]} 42. Rd1 {[%clk
0:00:45]} 42... Bb7 {[%clk 0:00:54.2]} 43. Qa5 {[%clk 0:00:43.7]} 43... Qd6
{[%clk 0:00:47.8]} 44. Kh1 {[%clk 0:00:42.6]} 44... a6 {[%clk 0:00:46.3]} 45.
Qa3 {[%clk 0:00:39.2]} 45... Nf4 {[%clk 0:00:42.8]} 46. Bxf4 {[%clk 0:00:35.9]}
46... exf4 {[%clk 0:00:35.7]} 47. f3 {[%clk 0:00:36.1]} 47... Nc6 {[%clk
0:00:31.6]} 48. Qd3 {[%clk 0:00:32.3]} 48... Ne5 {[%clk 0:00:31.4]} 49. Qd4
{[%clk 0:00:31.3]} 49... Qe6 {[%clk 0:00:25.4]} 50. Qc5 {[%clk 0:00:28.9]} 50...
Qe8 {[%clk 0:00:18.3]} 51. Ne7+ {[%clk 0:00:25.9]} 51... Kf7 {[%clk 0:00:17.7]}
52. Nf5 {[%clk 0:00:25.3]} 52... Qc6 {[%clk 0:00:17.1]} 53. Qe7+ {[%clk
0:00:23]} 53... Kg6 {[%clk 0:00:17]} 54. Qg7# {[%clk 0:00:23.9]} 1-0

[Event "Late-Titled-Tuesday-Blitz-January-30-2024"]
[Site "Chess.com"]
[Date "2024.01.30"]
[Round "3"]
[White "english_player_89"]
[Black "Ajedrecista3000"]
[Result "0-1"]
[WhiteElo "2420"]
[BlackElo "2592"]
[TimeControl "180+1"]
[EndTime "14:28:51 PST"]
[Termination "Ajedrecista3000 won by resignation"]

1. e4 {[%clk 0:03:00.9]} 1... e5 {[%clk 0:02:40]} 2. Nf3 {[%clk 0:03:01.4]} 2...
Nc6 {[%clk 0:02:39.8]} 3. Bc4 {[%clk 0:03:02.1]} 3... Bc5 {[%clk 0:02:35.3]} 4.
d3 {[%clk 0:03:02.8]} 4... d6 {[%clk 0:02:33.7]} 5. Bb3 {[%clk 0:03:03.4]} 5...
Nf6 {[%clk 0:02:32.4]} 6. c3 {[%clk 0:03:03.6]} 6... O-O {[%clk 0:02:31.6]} 7.
Nbd2 {[%clk 0:03:03.1]} 7... Be6 {[%clk 0:02:26.3]} 8. O-O {[%clk 0:02:58.2]}
8... Bxb3 {[%clk 0:02:17.4]} 9. Qxb3 {[%clk 0:02:57.7]} 9... Bb6 {[%clk
0:01:54.6]} 10. Nc4 {[%clk 0:02:57.2]} 10... Nd7 {[%clk 0:01:53.2]} 11. Bg5
{[%clk 0:02:49.3]} 11... Qe8 {[%clk 0:01:51.9]} 12. Ne3 {[%clk 0:02:46.1]} 12...
Nc5 {[%clk 0:01:49.3]} 13. Qc2 {[%clk 0:02:45.4]} 13... Ne6 {[%clk 0:01:50.2]}
14. Nd5 {[%clk 0:02:41.5]} 14... f6 {[%clk 0:01:43.2]} 15. Be3 {[%clk 0:02:39]}
15... Ne7 {[%clk 0:01:40]} 16. Bxb6 {[%clk 0:02:27.5]} 16... axb6 {[%clk
0:01:40.9]} 17. Qb3 {[%clk 0:02:26.1]} 17... Nxd5 {[%clk 0:01:37]} 18. Qxd5
{[%clk 0:02:24.7]} 18... Ra7 {[%clk 0:01:33.3]} 19. g3 {[%clk 0:02:24.2]} 19...
Qf7 {[%clk 0:01:31.7]} 20. a3 {[%clk 0:02:22.3]} 20... Nc5 {[%clk 0:01:30.7]}
21. Qxf7+ {[%clk 0:02:19.1]} 21... Kxf7 {[%clk 0:01:31.6]} 22. Rad1 {[%clk
0:02:17.7]} 22... g6 {[%clk 0:01:20.2]} 23. Nh4 {[%clk 0:02:08.5]} 23... Kg7
{[%clk 0:01:16.7]} 24. f4 {[%clk 0:02:08.2]} 24... Raa8 {[%clk 0:01:13.1]} 25.
f5 {[%clk 0:01:54.1]} 25... Rad8 {[%clk 0:01:07.9]} 26. c4 {[%clk 0:01:47.1]}
26... Ra8 {[%clk 0:01:02.1]} 27. Kf2 {[%clk 0:01:45.5]} 27... Rfd8 {[%clk
0:00:52.8]} 28. Ke3 {[%clk 0:01:44.5]} 28... c6 {[%clk 0:00:53.4]} 29. fxg6
{[%clk 0:01:33.3]} 29... hxg6 {[%clk 0:00:54.3]} 30. Rf2 {[%clk 0:01:32.8]}
30... Rf8 {[%clk 0:00:48.9]} 31. Rdf1 {[%clk 0:01:31.4]} 31... Rad8 {[%clk
0:00:49.5]} 32. b4 {[%clk 0:01:25.1]} 32... Ne6 {[%clk 0:00:48.4]} 33. Ra2
{[%clk 0:01:21.5]} 33... d5 {[%clk 0:00:44.6]} 34. cxd5 {[%clk 0:01:20.1]} 34...
cxd5 {[%clk 0:00:45.5]} 35. Rc1 {[%clk 0:01:11.7]} 35... Rd7 {[%clk 0:00:44.1]}
36. a4 {[%clk 0:01:03.2]} 36... Rfd8 {[%clk 0:00:43.6]} 37. Nf3 {[%clk
0:00:47.6]} 37... dxe4 {[%clk 0:00:43.8]} 38. dxe4 {[%clk 0:00:48.5]} 38... Rd3+
{[%clk 0:00:43.9]} 39. Ke2 {[%clk 0:00:47.9]} 39... Rb3 {[%clk 0:00:44.5]} 40.
b5 {[%clk 0:00:27.9]} 40... g5 {[%clk 0:00:26.4]} 41. Nd2 {[%clk 0:00:23.5]}
41... Rb4 {[%clk 0:00:20.4]} 42. Rc4 {[%clk 0:00:21.1]} 42... Rxd2+ {[%clk
0:00:20.3]} 43. Rxd2 {[%clk 0:00:18.8]} 43... Rxc4 {[%clk 0:00:20.5]} 44. Rd6
{[%clk 0:00:19.7]} 44... Kf7 {[%clk 0:00:20.3]} 45. Rxb6 {[%clk 0:00:19.7]}
45... Nc5 {[%clk 0:00:19.1]} 46. a5 {[%clk 0:00:18.3]} 46... Rxe4+ {[%clk
0:00:18.9]} 47. Kd2 {[%clk 0:00:15.1]} 47... Rd4+ {[%clk 0:00:17.4]} 48. Kc3
{[%clk 0:00:13.6]} 48... Na4+ {[%clk 0:00:16.8]} 0-1

[Event "Late-Titled-Tuesday-Blitz-January-30-2024"]
[Site "Chess.com"]
[Date "2024.01.30"]
[Round "3"]
[White "protectiago"]
[Black "Lion_DL"]
[Result "1-0"]
[WhiteElo "2071"]
[BlackElo "2332"]
[TimeControl "180+1"]
[EndTime "14:28:53 PST"]
[Termination "protectiago won by checkmate"]

1. d4 {[%clk 0:03:00.9]} 1... Nf6 {[%clk 0:02:59.7]} 2. c4 {[%clk 0:03:00]} 2...
e6 {[%clk 0:03:00.1]} 3. Nf3 {[%clk 0:02:58.6]} 3... b6 {[%clk 0:03:00]} 4. g3
{[%clk 0:02:58.7]} 4... Bb7 {[%clk 0:03:00.3]} 5. Bg2 {[%clk 0:02:58.9]} 5...
Be7 {[%clk 0:03:01]} 6. O-O {[%clk 0:02:58.5]} 6... O-O {[%clk 0:03:01.7]} 7.
Nc3 {[%clk 0:02:57]} 7... Ne4 {[%clk 0:03:02.2]} 8. Qc2 {[%clk 0:02:54.8]} 8...
Nxc3 {[%clk 0:03:02.2]} 9. bxc3 {[%clk 0:02:54.3]} 9... d6 {[%clk 0:03:02.6]}
10. Rd1 {[%clk 0:02:48.7]} 10... f5 {[%clk 0:03:00.7]} 11. d5 {[%clk 0:02:43.9]}
11... e5 {[%clk 0:02:55.8]} 12. e4 {[%clk 0:02:43.8]} 12... fxe4 {[%clk
0:02:53.3]} 13. Qxe4 {[%clk 0:02:43.3]} 13... Nd7 {[%clk 0:02:53.3]} 14. Bh3
{[%clk 0:02:38.9]} 14... Nc5 {[%clk 0:02:51.6]} 15. Qe2 {[%clk 0:02:25.7]} 15...
Ba6 {[%clk 0:02:43.6]} 16. Nd2 {[%clk 0:01:45.4]} 16... Bc8 {[%clk 0:02:31.8]}
17. Bxc8 {[%clk 0:01:22.3]} 17... Qxc8 {[%clk 0:02:32.7]} 18. Ne4 {[%clk
0:01:22]} 18... Qf5 {[%clk 0:02:13.9]} 19. Nxc5 {[%clk 0:01:14.1]} 19... bxc5
{[%clk 0:02:14.8]} 20. Be3 {[%clk 0:01:09.4]} 20... Rab8 {[%clk 0:02:14.7]} 21.
f4 {[%clk 0:00:47.8]} 21... Bf6 {[%clk 0:02:06.2]} 22. Rf1 {[%clk 0:00:33.9]}
22... Qe4 {[%clk 0:02:02.5]} 23. Rae1 {[%clk 0:00:29.9]} 23... exf4 {[%clk
0:01:51.7]} 24. Rxf4 {[%clk 0:00:28.4]} 24... Qg6 {[%clk 0:01:44.9]} 25. Ref1
{[%clk 0:00:28.3]} 25... Rfe8 {[%clk 0:01:40.5]} 26. R1f3 {[%clk 0:00:25.8]}
26... Bxc3 {[%clk 0:01:37.4]} 27. Rf1 {[%clk 0:00:08.1]} 27... Bd4 {[%clk
0:01:31.7]} 28. R4f3 {[%clk 0:00:06.8]} 28... Rxe3 {[%clk 0:01:23.5]} 29. Rxe3
{[%clk 0:00:06.9]} 29... Re8 {[%clk 0:01:23.7]} 30. Rf3 {[%clk 0:00:05.3]} 30...
Rxe3 {[%clk 0:01:18.1]} 31. Rxe3 {[%clk 0:00:05.3]} 31... Qe4 {[%clk 0:01:13.7]}
32. Kf2 {[%clk 0:00:05.6]} 32... Kf7 {[%clk 0:01:08.3]} 33. a4 {[%clk
0:00:04.5]} 33... Kf6 {[%clk 0:01:04.3]} 34. a5 {[%clk 0:00:04.6]} 34... Ke5
{[%clk 0:01:02.5]} 35. a6 {[%clk 0:00:02.2]} 35... g5 {[%clk 0:01:01.2]} 36. h3
{[%clk 0:00:01.5]} 36... h5 {[%clk 0:00:59.6]} 37. h4 {[%clk 0:00:01.9]} 37...
gxh4 {[%clk 0:00:58]} 38. Qxh5+ {[%clk 0:00:01.5]} 38... Kf6 {[%clk 0:00:53.6]}
39. Qxh4+ {[%clk 0:00:02.1]} 39... Qxh4 {[%clk 0:00:52.1]} 40. gxh4 {[%clk
0:00:02.6]} 40... Kf5 {[%clk 0:00:51.6]} 41. Kf3 {[%clk 0:00:02.9]} 41... Bxe3
{[%clk 0:00:52.1]} 42. Kxe3 {[%clk 0:00:03.5]} 42... Kg4 {[%clk 0:00:52.6]} 43.
Ke4 {[%clk 0:00:03.7]} 43... Kxh4 {[%clk 0:00:53.3]} 44. Kf5 {[%clk 0:00:04.1]}
44... Kg3 {[%clk 0:00:53.1]} 45. Ke6 {[%clk 0:00:04.5]} 45... Kf4 {[%clk
0:00:53.5]} 46. Kd7 {[%clk 0:00:05]} 46... Ke4 {[%clk 0:00:54.2]} 47. Kxc7
{[%clk 0:00:05.3]} 47... Kd4 {[%clk 0:00:54.9]} 48. Kxd6 {[%clk 0:00:05.4]}
48... Kxc4 {[%clk 0:00:55.6]} 49. Kc6 {[%clk 0:00:05.4]} 49... Kb4 {[%clk
0:00:55.5]} 50. d6 {[%clk 0:00:05.9]} 50... c4 {[%clk 0:00:56.4]} 51. d7 {[%clk
0:00:06.4]} 51... c3 {[%clk 0:00:57.1]} 52. d8=Q {[%clk 0:00:06.4]} 52... c2
{[%clk 0:00:57.8]} 53. Qd2+ {[%clk 0:00:05.5]} 53... Kb3 {[%clk 0:00:58.1]} 54.
Qc1 {[%clk 0:00:06]} 54... Kb4 {[%clk 0:00:58]} 55. Kb7 {[%clk 0:00:06.3]} 55...
Ka5 {[%clk 0:00:58.2]} 56. Kxa7 {[%clk 0:00:06.6]} 56... Kb5 {[%clk 0:00:59]}
57. Kb7 {[%clk 0:00:07]} 57... Ka5 {[%clk 0:00:59.9]} 58. a7 {[%clk 0:00:07.2]}
58... Kb5 {[%clk 0:01:00.8]} 59. a8=Q {[%clk 0:00:06.6]} 59... Kb4 {[%clk
0:01:01.7]} 60. Qa6 {[%clk 0:00:05.5]} 60... Kb3 {[%clk 0:01:01.2]} 61. Qb6+
{[%clk 0:00:05.8]} 61... Kc4 {[%clk 0:01:01.6]} 62. Qc6+ {[%clk 0:00:06]} 62...
Kd4 {[%clk 0:01:02.5]} 63. Q6xc2 {[%clk 0:00:05.9]} 63... Ke5 {[%clk 0:01:02.3]}
64. Q2d2 {[%clk 0:00:06.1]} 64... Ke6 {[%clk 0:01:03.2]} 65. Qce1+ {[%clk
0:00:06.5]} 65... Kf5 {[%clk 0:01:04.1]} 66. Qdf2+ {[%clk 0:00:07]} 66... Kg4
{[%clk 0:01:05]} 67. Qeg1+ {[%clk 0:00:07.5]} 67... Kh3 {[%clk 0:01:05.9]} 68.
Qfh2# {[%clk 0:00:08.1]} 1-0

[Event "Late-Titled-Tuesday-Blitz-January-30-2024"]
[Site "Chess.com"]
[Date "2024.01.30"]
[Round "3"]
[White "Lion-Al-Messi"]
[Black "Onthequiet"]
[Result "1-0"]
[WhiteElo "2600"]
[BlackElo "2424"]
[TimeControl "180+1"]
[EndTime "14:28:55 PST"]
[Termination "Lion-Al-Messi won on time"]

1. e4 {[%clk 0:03:00.9]} 1... c5 {[%clk 0:02:58.8]} 2. Nf3 {[%clk 0:03:01.4]}
2... Nc6 {[%clk 0:02:58.9]} 3. d4 {[%clk 0:03:02.1]} 3... cxd4 {[%clk
0:02:59.8]} 4. Nxd4 {[%clk 0:03:03]} 4... Qb6 {[%clk 0:03:00.2]} 5. Nb3 {[%clk
0:03:02.9]} 5... Nf6 {[%clk 0:03:00.2]} 6. Nc3 {[%clk 0:03:03.6]} 6... e6 {[%clk
0:03:00.2]} 7. Be3 {[%clk 0:03:03.6]} 7... Qc7 {[%clk 0:03:00.1]} 8. Bd3 {[%clk
0:03:00.9]} 8... a6 {[%clk 0:03:00.2]} 9. g4 {[%clk 0:03:01]} 9... Ne5 {[%clk
0:02:59.9]} 10. g5 {[%clk 0:03:01.1]} 10... Nfg4 {[%clk 0:02:49.9]} 11. Bd4
{[%clk 0:02:59.2]} 11... Nxd3+ {[%clk 0:02:40.6]} 12. Qxd3 {[%clk 0:02:43.8]}
12... Ne5 {[%clk 0:02:39.4]} 13. Qg3 {[%clk 0:02:38.4]} 13... Bd6 {[%clk
0:02:35.6]} 14. f4 {[%clk 0:02:38.6]} 14... Nc4 {[%clk 0:02:32.1]} 15. e5 {[%clk
0:02:36.9]} 15... Bb4 {[%clk 0:02:28.9]} 16. O-O-O {[%clk 0:02:23.5]} 16... b6
{[%clk 0:02:21.3]} 17. f5 {[%clk 0:02:14.4]} 17... Bb7 {[%clk 0:02:18.1]} 18.
Rhf1 {[%clk 0:02:12.3]} 18... O-O {[%clk 0:02:08.1]} 19. f6 {[%clk 0:02:09.7]}
19... g6 {[%clk 0:01:41.9]} 20. Qh4 {[%clk 0:02:01.5]} 20... Rfc8 {[%clk
0:01:40]} 21. Rd3 {[%clk 0:01:58.3]} 21... h5 {[%clk 0:01:38.1]} 22. gxh6 {[%clk
0:01:57.4]} 22... Kh7 {[%clk 0:01:38.1]} 23. Qf4 {[%clk 0:01:12.9]} 23... Rg8
{[%clk 0:00:56.2]} 24. h4 {[%clk 0:01:06.9]} 24... Bf8 {[%clk 0:00:52.9]} 25.
Ne4 {[%clk 0:00:58.2]} 25... Bxe4 {[%clk 0:00:50.9]} 26. Qxe4 {[%clk 0:00:59.1]}
26... Qc6 {[%clk 0:00:45.4]} 27. Qe2 {[%clk 0:00:42.9]} 27... a5 {[%clk
0:00:38.3]} 28. Bc3 {[%clk 0:00:37.6]} 28... b5 {[%clk 0:00:26.7]} 29. Nd4
{[%clk 0:00:37.5]} 29... Qb7 {[%clk 0:00:25.3]} 30. Nf3 {[%clk 0:00:37.3]} 30...
d5 {[%clk 0:00:16.2]} 31. Ng5+ {[%clk 0:00:33.2]} 31... Kh8 {[%clk 0:00:16]} 32.
h5 {[%clk 0:00:25.3]} 32... Bxh6 {[%clk 0:00:14]} 33. Rg3 {[%clk 0:00:21.8]}
33... b4 {[%clk 0:00:12.3]} 34. Bd4 {[%clk 0:00:19.6]} 34... Rac8 {[%clk
0:00:08.9]} 35. hxg6 {[%clk 0:00:19.3]} 35... Rxg6 {[%clk 0:00:07.7]} 36. Rh1
{[%clk 0:00:19.8]} 36... Kg8 {[%clk 0:00:07.1]} 37. Qg2 {[%clk 0:00:15]} 37...
a4 {[%clk 0:00:04.6]} 38. Kb1 {[%clk 0:00:15.3]} 38... b3 {[%clk 0:00:04.8]} 39.
Nxe6 {[%clk 0:00:14]} 39... bxc2+ {[%clk 0:00:04.3]} 40. Ka1 {[%clk 0:00:09.8]}
1-0